bitfinex/quotes_ETHUSD_20240710
["timestamp","ask_amount","ask_price","bid_price","bid_amount"]
[1720624204367,1.11667833,3103.0,3102.2,0.62880865]
[1720624204572,2.44759588,3103.0,3102.2,0.62880865]
[1720624204807,1.11667833,3102.9,3102.3,6.44673]
[1720624205019,1.11667833,3103.1,3102.6,6.44613]
[1720624205187,1.11667833,3103.0,3102.7,0.644613]
[1720624205518,1.11655426,3102.9,3102.7,3.867533]
[1720624205683,1.66476076,3103.6,3102.8,3.22284]
[1720624205684,1.33091755,3103.6,3102.8,3.22284]
[1720624205884,1.56270262,3103.5,3102.9,3.0]
[1720624206094,1.11651511,3103.4,3102.9,3.0]
[1720624206299,1.11651511,3103.3,3103.0,0.622284]
[1720624206520,1.11651511,3103.2,3103.0,0.622284]
[1720624206821,8.79091755,3103.8,3103.0,7.067484]
[1720624207007,8.79091755,3103.8,3103.1,6.2225]
[1720624207008,1.11643507,3103.7,3103.1,6.2225]
[1720624207329,9.7294,3104.5,3103.1,6.2225]
[1720624207330,1.11643507,3103.6,3103.3,3.22237]
[1720624207543,1.33091755,3104.0,3103.4,3.22225]
[1720624207742,1.11629596,3103.9,3103.5,3.22214]
[1720624208029,1.33091755,3104.3,3103.4,0.0644376]
[1720624208194,1.11623441,3104.2,3103.6,3.0]
[1720624208397,1.11623441,3104.1,3103.6,3.0]
[1720624208592,1.33091755,3104.4,3103.6,0.62866876]
[1720624208819,1.56263044,3104.3,3103.6,0.62866876]
[1720624209005,1.56263044,3104.3,3103.5,3.0]
[1720624209006,1.11623657,3104.2,3103.4,3.0]
[1720624209217,0.44635289,3104.1,3103.4,3.0]
[1720624209419,0.44635289,3104.1,3102.9,5.65532]
[1720624209420,1.11623657,3104.0,3103.0,6.844954]
[1720624209740,0.44640721,3103.9,3103.0,6.844954]
[1720624209894,0.44640721,3103.9,3103.1,3.2225]
[1720624210099,1.66606737,3104.2,3103.0,6.844954]
[1720624210100,1.11623657,3103.8,3103.2,7.2292154]
[1720624210295,1.11623657,3104.0,3103.2,4.0067454]
[1720624210518,2.44715412,3104.0,3103.2,1.0067454]
[1720624210730,1.11623657,3103.9,3103.2,1.0067454]
[1720624210913,1.11623657,3103.9,3103.2,4.2292054]
[1720624211118,2.44715412,3104.0,3103.3,3.72292054]
[1720624211315,1.11623657,3103.9,3103.3,3.72292054]
[1720624211498,1.11623657,3104.0,3103.3,3.72292054]
[1720624211831,1.33091755,3104.1,3103.3,3.72292054]
[1720624211999,1.56275503,3104.0,3103.3,3.72292054]
[1720624212334,1.11635508,3103.9,3103.3,3.72292054]
[1720624212519,1.33091755,3104.1,3103.4,0.79521259]
[1720624212520,1.11635508,3104.0,3103.4,0.79521259]
[1720624212730,1.33091755,3104.2,3103.4,0.79521259]
[1720624212899,1.56266374,3104.1,3103.4,0.79521259]
[1720624213100,1.33091755,3104.2,3103.4,4.01746259]
[1720624213409,1.11632971,3104.1,3103.4,0.79521259]
[1720624213599,1.33091755,3104.2,3103.3,3.0]
[1720624213798,2.89348519,3104.1,3103.1,6.22257]
[1720624214018,1.5625421,3104.0,3103.1,6.22257]
[1720624214241,1.33091755,3104.1,3103.2,3.22247]
[1720624214395,1.5624482,3104.0,3103.3,3.0]
[1720624214598,1.33091755,3104.1,3103.3,3.0]
[1720624214795,1.56245469,3104.0,3103.0,0.622284]
[1720624215015,1.33091755,3104.0,3103.0,0.622284]
[1720624215216,2.89346519,3103.9,3102.6,4.35773248]
[1720624215463,1.33091755,3103.6,3102.6,4.35773248]
[1720624215643,1.56254764,3103.5,3102.6,7.58077248]
[1720624215821,1.33091755,3103.6,3102.6,7.58077248]
[1720624216021,1.56276467,3103.5,3102.6,4.35773248]
[1720624216225,1.33091755,3103.6,3102.6,5.63488273]
[1720624216422,1.56291962,3103.5,3102.6,5.63488273]
[1720624216659,1.33091755,3103.7,3102.6,5.63488273]
[1720624216876,1.1164942,3103.6,3102.7,6.22291]
[1720624217156,1.33091755,3103.7,3102.7,6.22291]
[1720624217357,1.33091755,3103.9,3102.9,3.22272]
[1720624217558,1.11641338,3103.8,3102.9,6.44544]
[1720624217722,1.33091755,3103.9,3102.9,6.44544]
[1720624217927,1.11640902,3103.8,3102.9,6.44544]
[1720624218122,1.33091755,3103.9,3103.0,0.76312193]
[1720624218328,1.56314155,3103.8,3103.0,0.76312193]
[1720624218528,1.11642888,3103.7,3102.8,1.18577927]
[1720624218777,1.11642888,3103.8,3102.8,1.18577927]
[1720624218923,1.33091755,3103.9,3102.9,6.44542]
[1720624219120,1.33091755,3104.0,3103.0,3.22267]
[1720624219351,2.89416009,3103.9,3103.0,3.22267]
[1720624219562,1.33091755,3104.0,3103.1,6.22255]
[1720624220070,1.33091755,3104.1,3103.1,6.22255]
[1720624220226,1.56320042,3104.0,3103.1,6.22255]
[1720624220422,1.33091755,3104.1,3103.2,3.22239]
[1720624220729,1.33091755,3104.2,3103.3,5.3056]
[1720624220924,1.56317615,3104.1,3103.3,5.3056]
[1720624221128,1.33091755,3104.2,3103.3,5.3056]
[1720624221458,1.11632081,3104.1,3103.3,9.703024]
[1720624221629,1.33091755,3104.4,3103.4,3.22222]
[1720624221831,1.11625423,3104.3,3103.5,3.0]
[1720624222141,1.33091755,3104.5,3103.5,3.0]
[1720624222337,1.56302976,3104.4,3103.5,6.22214]
[1720624222541,1.33091755,3104.6,3103.6,0.622214]
[1720624222747,1.56298882,3104.5,3103.6,0.622214]
[1720624223078,1.56305032,3104.4,3103.6,0.622214]
[1720624223235,0.44685548,3104.3,3103.4,3.0]
[1720624223436,1.56306596,3104.3,3103.4,6.22225]
[1720624223801,1.33091755,3104.4,3103.4,6.22221]
[1720624223979,1.11627036,3104.3,3103.4,6.22221]
[1720624224189,1.33091755,3104.4,3103.4,3.0]
[1720624224463,2.89406267,3104.3,3103.4,3.0]
[1720624224680,1.56309668,3104.2,3103.3,2.3056]
[1720624224976,0.33620455,3104.5,3103.3,5.3056]
[1720624225146,1.11632781,3104.1,3103.3,5.3056]
[1720624225341,1.33278983,3104.3,3103.3,5.3056]
[1720624225564,1.56314866,3104.2,3103.3,5.3056]
[1720624225729,1.11632606,3104.1,3103.3,5.3056]
[1720624226046,1.66598729,3104.4,3103.3,3.0]
[1720624226047,1.11633589,3104.0,3103.3,3.0]
[1720624226244,1.33278983,3104.2,3103.1,3.0]
[1720624226445,1.56318857,3104.1,3103.1,3.944531]
[1720624226633,1.56318548,3104.0,3102.8,2.388]
[1720624226836,2.89597531,3103.9,3102.6,1.27715025]
[1720624227155,1.33278983,3103.5,3102.3,2.3805]
[1720624227360,1.33278983,3103.1,3102.1,0.5]
[1720624227560,2.89597531,3103.0,3102.1,0.5]
[1720624227757,1.56318815,3102.9,3102.1,0.5]
[1720624227948,2.89597798,3102.8,3102.1,0.5]
[1720624228143,1.33278983,3102.8,3102.1,0.5]
[1720624228484,1.66541049,3103.0,3102.1,0.5]
[1720624228485,1.11685132,3102.7,3102.1,0.78352]
[1720624228662,1.33278983,3103.1,3102.1,0.78352]
[1720624228862,1.1167241,3103.0,3102.1,0.78352]
[1720624229080,1.1167241,3102.9,3102.1,0.78352]
[1720624229238,1.33278983,3103.2,3102.1,0.78352]
[1720624229440,2.89632025,3103.1,3102.1,4.00714]
[1720624229671,1.11669153,3103.0,3102.1,4.00714]
[1720624229969,1.11669153,3103.1,3102.1,4.00714]
[1720624230190,1.11669153,3103.0,3102.1,4.00714]
[1720624230393,1.11669153,3103.1,3102.1,4.00714]
[1720624230568,1.11669153,3103.0,3102.3,3.22331]
[1720624230768,9.71,3103.9,3102.2,4.05316937]
[1720624230769,1.33278983,3103.4,3102.7,2.3372]
[1720624230985,1.11658356,3103.3,3102.7,2.3372]
[1720624231183,1.33278983,3103.6,3102.7,8.56017]
[1720624231355,1.11653612,3103.5,3102.8,0.06444946]
[1720624231706,1.33278983,3103.7,3102.8,0.06444946]
[1720624231707,1.11653612,3103.4,3102.8,0.06444946]
[1720624231898,1.11653612,3103.3,3102.9,0.05898697]
[1720624232073,1.33278983,3103.7,3102.9,0.05898697]
[1720624232392,3.21,3103.8,3102.9,0.05898697]
[1720624232393,1.11649754,3103.6,3102.9,0.05898697]
[1720624232607,1.11649754,3103.5,3102.7,9.74494495]
[1720624232766,1.11649754,3103.4,3102.8,0.9744945]
[1720624233109,1.11649754,3103.3,3102.8,1.03260465]
[1720624233403,1.11648538,3103.2,3102.8,1.03260465]
[1720624233574,4.54278983,3103.8,3102.8,1.03260465]
[1720624233790,1.11648585,3103.7,3102.8,1.09705412]
[1720624233959,1.11648585,3103.6,3102.9,1.40649091]
[1720624234161,4.54278983,3103.8,3103.0,0.0644483]
[1720624234162,1.11648585,3103.5,3103.0,0.0644483]
[1720624234398,1.11648585,3103.5,3103.1,3.22252]
[1720624234604,1.66520904,3104.1,3103.2,3.0]
[1720624234605,1.33278983,3104.1,3103.2,3.0]
[1720624234804,1.11635738,3104.0,3103.3,0.6280452]
[1720624235106,1.11635738,3103.9,3103.3,0.68589598]
[1720624235289,7.46,3104.3,3103.3,0.68589598]
[1720624235290,1.11635738,3103.8,3103.3,0.68589598]
[1720624235609,8.79278983,3104.3,3103.3,0.75033596]
[1720624235762,1.56278345,3104.2,3103.3,0.75033596]
[1720624235964,1.11628022,3104.1,3103.4,0.6972796]
[1720624236161,1.11628022,3104.2,3103.4,0.6972796]
[1720624236392,0.44648051,3104.1,3103.5,0.05774706]
[1720624236592,1.11628022,3104.0,3103.5,0.05774706]
[1720624237066,2.44907005,3104.1,3103.6,0.05762772]
[1720624237266,2.89556411,3104.0,3103.6,0.05762772]
[1720624237463,1.11628022,3103.9,3103.0,3.0]
[1720624237676,1.33278983,3104.0,3103.7,0.05758711]
[1720624237878,1.33278983,3104.0,3102.7,2.3372]
[1720624237879,1.33278983,3103.8,3102.7,2.3372]
[1720624238111,2.89507716,3103.7,3102.7,2.3372]
[1720624238410,2.8949786,3103.6,3102.8,0.05613732]
[1720624238623,1.11642346,3103.5,3102.8,0.05613732]
[1720624238801,0.4464386,3103.4,3102.7,2.3372]
[1720624238990,1.11642346,3103.3,3102.7,2.3372]
[1720624239188,1.11642346,3103.3,3102.8,0.05613732]
[1720624239499,1.11642346,3103.2,3102.8,0.05613732]
[1720624239669,1.33210866,3103.5,3102.7,2.3372]
[1720624239670,1.11642346,3103.4,3102.7,2.3372]
[1720624239867,1.11642346,3103.4,3102.9,0.05609669]
[1720624240070,1.11642346,3103.4,3102.8,0.05613732]
[1720624240303,1.11642346,3103.3,3103.0,0.05605607]
[1720624240470,1.11642346,3103.5,3102.9,0.05609669]
[1720624240671,1.11642346,3103.5,3103.1,0.05601544]
[1720624241006,1.33210866,3103.5,3103.0,0.05605607]
[1720624241179,1.11653849,3103.4,3103.2,0.05597482]
[1720624241374,1.11653849,3103.3,3103.1,0.05601544]
[1720624241575,1.11653849,3103.4,3102.7,2.57092]
[1720624241976,1.11653849,3103.4,3102.8,0.5794]
[1720624242395,1.11653849,3103.4,3102.9,3.22277]
[1720624242712,1.66463166,3103.7,3103.0,3.22261]
[1720624242713,1.33210866,3103.7,3103.0,3.22261]
[1720624243008,9.7884,3104.4,3102.8,0.5794]
[1720624243009,2.89476329,3103.6,3102.8,0.5794]
[1720624243226,1.56265463,3103.5,3102.8,3.5794]
[1720624243518,1.56250898,3103.4,3102.9,1.259612]
[1720624243673,1.11644581,3103.3,3102.7,2.3372]
[1720624243875,2.44855447,3103.4,3102.7,2.3372]
[1720624244099,1.56254319,3103.3,3102.7,2.3372]
[1720624244405,1.56265475,3103.2,3102.7,2.3372]
[1720624244613,1.11657424,3103.2,3102.7,2.3372]
[1720624244808,1.11657424,3103.1,3102.7,2.3372]
[1720624245124,1.11657424,3103.0,3102.7,2.3372]
[1720624245323,1.33210866,3103.3,3102.7,2.3372]
[1720624245521,1.56248049,3103.2,3102.7,3.19324]
[1720624245732,1.11654337,3103.1,3102.7,3.19324]
[1720624246026,1.33210866,3103.3,3102.7,3.19324]
[1720624246188,1.56247995,3103.2,3102.7,3.19324]
[1720624246534,1.11653518,3103.1,3102.7,3.19324]
[1720624246837,1.33210866,3103.3,3102.8,0.05608332]
[1720624247003,1.56252961,3103.2,3102.7,3.19324]
[1720624247207,1.11652581,3103.1,3102.8,0.42607911]
[1720624247424,1.11652581,3103.2,3102.8,0.42607911]
[1720624247637,1.56255163,3103.1,3102.8,0.42607911]
[1720624247939,1.33210866,3103.4,3102.9,0.36193191]
[1720624248096,1.56245554,3103.3,3102.9,3.58470191]
[1720624248302,1.33210866,3103.5,3103.0,0.05600207]
[1720624248517,1.56237812,3103.4,3103.1,0.37051517]
[1720624248741,1.33210866,3103.5,3103.1,0.37051517]
[1720624248920,1.56236442,3103.4,3103.2,0.05592082]
[1720624249118,1.56236442,3103.3,3103.2,0.05592082]
[1720624249437,2.89447308,3103.3,3103.2,0.05592082]
[1720624249592,2.89447308,3103.3,3102.9,0.36193191]
[1720624249795,2.89447308,3103.2,3103.0,0.05600207]
[1720624249994,2.89459535,3103.1,3103.0,0.05600207]
[1720624250197,2.89703842,3103.1,3102.5,3.22318]
[1720624250428,1.11654514,3103.0,3102.9,5.63499]
[1720624250588,1.33455173,3103.5,3102.9,8.69092269]
[1720624250792,0.44595349,3103.4,3102.9,5.69092269]
[1720624251318,1.33455173,3103.6,3103.0,3.22267]
[1720624251517,1.33455173,3103.6,3103.0,6.44534]
[1720624251518,1.56231078,3103.5,3103.0,6.44534]
[1720624251738,0.4459385,3103.4,3103.1,0.94731971]
[1720624251893,1.33455173,3103.6,3103.1,4.16981971]
[1720624252089,0.44599538,3103.5,3103.1,4.16981971]
[1720624252600,1.78054711,3103.5,3103.1,4.16981971]
[1720624252948,0.44599538,3103.4,3103.1,4.16981971]
[1720624253126,1.33455173,3103.6,3103.1,4.16981971]
[1720624253330,1.33455173,3103.6,3103.1,0.05596144]
[1720624253331,1.56238299,3103.5,3103.1,0.05596144]
[1720624253517,2.89693472,3103.4,3103.1,0.05596144]
[1720624253851,1.56238299,3103.3,3103.2,0.05240668]
[1720624254148,1.56238299,3103.3,3102.9,3.0]
[1720624254349,1.33455173,3103.4,3103.2,0.05240668]
[1720624254507,1.56235369,3103.3,3102.9,3.0]
[1720624254704,0.44590822,3103.2,3102.9,3.0]
[1720624254912,1.33455173,3103.4,3102.9,3.0]
[1720624255111,0.44591139,3103.3,3102.9,3.0]
[1720624255317,1.33455173,3103.5,3103.0,0.622289]
[1720624255513,1.56232555,3103.4,3103.0,0.622289]
[1720624255719,0.4459152,3103.3,3103.0,0.622289]
[1720624255954,2.45099959,3103.4,3103.0,0.622289]
[1720624256164,1.33455173,3103.5,3103.0,3.844909]
[1720624256320,1.56218747,3103.4,3103.1,3.22257]
[1720624256511,1.33455173,3103.6,3103.1,3.22257]
[1720624256837,1.56214237,3103.5,3103.1,3.22257]
[1720624257041,0.44579332,3103.4,3103.1,4.2293179]
[1720624257222,1.11638126,3103.5,3103.1,4.2293179]
[1720624257617,1.56216597,3103.4,3103.1,4.2293179]
[1720624257811,1.33455173,3103.6,3103.1,4.2293179]
[1720624258016,1.56216266,3103.5,3103.1,4.2293179]
[1720624258216,1.56216266,3103.4,3103.2,0.80742269]
[1720624258469,1.33455173,3103.6,3103.2,0.80742269]
[1720624258646,2.89669209,3103.5,3102.9,3.0]
[1720624258847,2.89669209,3103.4,3102.8,3.0]
[1720624259160,1.56214036,3103.3,3102.9,3.22277]
[1720624259372,1.33455173,3103.4,3103.0,3.0]
[1720624259661,1.56219377,3103.3,3103.0,3.922277]
[1720624259964,1.33455173,3103.5,3103.0,3.922277]
[1720624260130,2.89664024,3103.4,3103.0,0.922277]
[1720624260332,1.56208851,3103.3,3102.9,6.44546]
[1720624260554,1.33455173,3103.6,3103.0,3.22266]
[1720624260758,1.11637947,3103.5,3103.0,3.22266]
[1720624260926,1.5620696,3103.4,3103.0,3.22266]
[1720624261118,1.11638196,3103.3,3103.1,3.22257]
[1720624261323,1.33455173,3103.6,3103.2,0.322257]
[1720624261523,2.89652355,3103.5,3103.1,3.2225]
[1720624261755,1.1163456,3103.4,3103.1,3.2225]
[1720624261942,1.33455173,3103.6,3103.1,3.2225]
[1720624261943,1.1163456,3103.5,3103.2,0.04472653]
[1720624262128,1.11634582,3103.4,3103.2,0.04472653]
[1720624262334,1.33455173,3103.6,3103.1,3.2225]
[1720624262554,1.56197358,3103.5,3103.3,0.04468591]
[1720624262727,1.11635395,3103.4,3103.2,0.04472653]
[1720624262927,1.11635395,3103.3,3103.1,0.644521]
[1720624263123,2.45090568,3103.5,3103.1,0.644521]
[1720624263348,1.5620277,3103.4,3103.1,3.867091]
[1720624263571,1.33455173,3103.6,3103.1,3.867091]
[1720624263572,1.11635395,3103.3,3103.2,0.3867091]
[1720624263888,1.33455173,3103.6,3103.2,0.3867091]
[1720624263889,1.33455173,3103.6,3103.2,3.6091791]
[1720624264060,1.11632028,3103.5,3103.4,3.22221]
[1720624264360,1.33455173,3103.8,3103.4,3.22221]
[1720624264523,1.56206023,3103.7,3103.5,0.560721]
[1720624264729,1.6688119,3104.0,3103.5,0.560721]
[1720624264730,1.11625938,3103.6,3103.5,0.560721]
[1720624265057,1.33455173,3103.9,3103.5,0.560721]
[1720624265238,1.56208679,3103.8,3103.5,0.560721]
[1720624265442,1.11626094,3103.7,3103.5,0.560721]
[1720624265648,1.33455173,3103.9,3103.5,0.560721]
[1720624265960,1.56195633,3103.8,3103.5,0.560721]
[1720624266172,1.1162558,3103.7,3103.5,0.560721]
[1720624266384,1.1162558,3103.8,3103.5,0.560721]
[1720624266528,1.11624078,3103.7,3103.5,0.560721]
[1720624266727,1.33455173,3104.0,3103.5,0.560721]
[1720624266936,1.5619252,3103.9,3103.5,0.560721]
[1720624267142,1.56190667,3103.8,3103.5,0.560721]
[1720624267355,1.33455173,3104.0,3103.5,3.782871]
[1720624267658,1.56180094,3103.9,3103.6,3.66478352]
[1720624267862,1.33455173,3104.1,3103.7,3.22195]
[1720624268054,1.11615254,3104.0,3103.7,3.22195]
[1720624268259,1.33455173,3104.2,3103.8,3.22185]
[1720624268558,1.11615321,3104.1,3103.8,3.2862783]
[1720624268771,1.33455173,3104.2,3103.8,3.22185]
[1720624268969,1.11614753,3104.1,3103.8,3.22185]
[1720624269182,1.33455173,3104.3,3103.8,3.94631258]
[1720624269383,1.56165089,3104.2,3103.9,3.22174]
[1720624269698,1.33455173,3104.7,3104.5,3.22113]
[1720624269915,1.33455173,3105.1,3104.5,3.22113]
[1720624270192,1.33455173,3105.1,3104.2,2.88]
[1720624270193,1.56133961,3105.0,3104.7,6.44169]
[1720624270411,1.11582891,3105.0,3104.7,6.44169]
[1720624270703,1.33421516,3105.2,3104.7,3.22084]
[1720624270902,1.5613037,3105.1,3104.7,3.22084]
[1720624271206,1.33421516,3105.2,3104.7,3.8972423]
[1720624271365,1.56132307,3105.1,3104.7,3.22084]
[1720624271565,1.33421516,3105.3,3104.7,3.22084]
[1720624271803,1.56133971,3105.2,3104.7,3.22084]
[1720624271960,1.56133971,3105.2,3104.6,0.38652391]
[1720624271961,1.33421516,3105.4,3104.8,2.50491091]
[1720624272162,1.33421516,3105.6,3104.8,2.50491091]
[1720624272366,1.11569824,3105.5,3105.4,3.22019]
[1720624272698,1.33421516,3106.0,3105.4,3.22019]
[1720624272863,1.56106233,3105.9,3105.4,3.22019]
[1720624273065,1.33421516,3106.0,3105.4,3.22019]
[1720624273401,1.56101173,3105.9,3105.4,3.22013]
[1720624273606,1.33421516,3106.1,3105.4,6.44026]
[1720624273776,1.33073844,3106.2,3105.4,6.44026]
[1720624274102,2.89169104,3106.1,3105.1,3.22049]
[1720624274260,1.5609526,3106.0,3105.2,6.50513926]
[1720624274465,1.33073844,3106.2,3105.2,6.50513926]
[1720624274664,1.33073844,3106.2,3105.3,3.06439922]
[1720624274665,1.56096428,3106.1,3105.3,3.06439922]
[1720624274858,1.33073844,3106.3,3105.4,3.22017]
[1720624275059,1.11555027,3106.2,3105.5,3.06439589]
[1720624275301,1.33073844,3106.4,3105.7,3.2198]
[1720624275487,1.11549686,3106.3,3105.6,3.21992]
[1720624275684,1.33073844,3106.5,3105.5,3.0]
[1720624275871,1.11550199,3106.4,3105.5,3.0]
[1720624276076,1.33073844,3106.5,3105.5,3.22008]
[1720624276374,1.56090629,3106.4,3105.5,3.22008]
[1720624276704,1.66705102,3106.6,3105.5,3.22008]
[1720624277004,1.56091521,3106.5,3105.6,0.04279934]
[1720624277302,1.11551125,3106.4,3105.4,3.22019]
[1720624277466,1.66705102,3106.6,3105.7,0.04275879]
[1720624277665,1.11555743,3106.5,3105.5,3.0]
[1720624277860,0.33631258,3106.6,3105.6,0.04279934]
[1720624278088,1.33073844,3106.7,3105.6,2.35659934]
[1720624278402,1.11549345,3106.6,3105.6,2.35659934]
[1720624278574,1.11549345,3106.5,3105.6,0.04279934]
[1720624278774,1.45192905,3106.6,3105.6,0.04279934]
[1720624278991,1.11549345,3106.5,3105.6,0.04279934]
[1720624279301,1.11549345,3106.5,3105.7,0.04274531]
[1720624279500,0.3364356,3106.6,3105.7,0.04274531]
[1720624279706,1.11556722,3106.5,3105.3,6.22023]
[1720624279902,0.3364356,3106.6,3105.8,0.04270476]
[1720624280202,1.11557105,3106.5,3105.3,7.395665]
[1720624280405,0.3364356,3106.6,3105.9,0.04265972]
[1720624280707,2.3041,3106.8,3106.0,0.04263714]
[1720624281093,0.15869693,3107.0,3105.6,3.21994]
[1720624281270,1.56079121,3106.9,3106.1,0.04257862]
[1720624281466,1.45151558,3106.8,3105.5,3.0]
[1720624281769,1.11547685,3106.7,3105.6,0.04278137]
[1720624282005,6.96468387,3106.6,3105.6,0.04278137]
[1720624282304,1.32577137,3106.4,3104.7,6.80673248]
[1720624282504,1.11571432,3106.3,3104.9,3.22068]
[1720624282727,3.0,3106.5,3105.2,3.22034]
[1720624282934,1.11562745,3106.4,3105.2,3.22034]
[1720624283090,3.0,3106.5,3105.3,0.04158776]
[1720624283292,1.11559391,3106.4,3105.3,0.04158776]
[1720624283524,3.0,3106.5,3105.3,0.04158776]
[1720624283729,1.11559347,3106.4,3105.4,2.2856]
[1720624283945,3.33603873,3106.8,3105.4,8.38573]
[1720624284229,4.11550943,3106.7,3105.5,0.04150664]
[1720624284393,1.11550943,3106.6,3105.5,0.04150664]
[1720624284835,1.11550943,3106.7,3105.5,0.04150664]
[1720624286924,0.33603873,3106.8,3105.5,0.04150664]
[1720624286925,1.11553734,3106.6,3105.5,0.04150664]
[1720624287226,0.33603873,3106.8,3105.5,3.8163163]
[1720624287430,1.1155163,3106.7,3105.5,0.5962463]
[1720624287630,0.33603873,3106.8,3105.5,0.5962463]
[1720624287929,1.11552694,3106.7,3105.5,0.04150664]
[1720624288612,5.7652,3106.6,3105.5,0.04150664]
[1720624288926,5.7652,3106.6,3104.9,2.2671]
[1720624288927,1.56082778,3106.5,3104.9,2.2671]
[1720624289227,2.11082778,3106.4,3104.9,2.2671]
[1720624289394,1.11552694,3106.3,3105.0,0.03766488]
[1720624289594,4.11552694,3106.3,3105.0,0.03766488]
[1720624289896,1.11552694,3106.2,3105.0,0.03766488]
[1720624290106,1.11578912,3106.1,3105.0,0.03766488]
[1720624290319,1.11578912,3106.0,3105.0,0.03766488]
[1720624290511,1.11578912,3105.9,3105.0,0.03766488]
[1720624290733,0.55,3106.4,3105.0,0.26814137]
[1720624290935,1.11576348,3106.3,3105.0,0.26814137]
[1720624291249,1.11576348,3106.2,3105.0,0.26814137]
[1720624291538,1.11576348,3106.1,3105.0,0.03766488]
[1720624291745,1.11576348,3106.0,3105.0,0.03766488]
[1720624293304,0.33698906,3106.1,3105.0,0.03766488]
[1720624293305,1.11572867,3105.9,3105.0,0.03766488]
[1720624293510,1.11572867,3105.8,3105.0,0.03766488]
[1720624293754,1.11572867,3106.0,3105.0,0.03766488]
[1720624294046,1.11572867,3105.9,3105.0,0.03766488]
[1720624294220,1.11572867,3106.0,3105.0,0.03766488]
[1720624294542,1.11572867,3106.0,3105.1,0.23047649]
[1720624294745,1.11572867,3106.0,3105.1,0.26819964]
[1720624294911,1.11572867,3106.4,3105.1,0.26819964]
[1720624295106,1.11572867,3106.3,3105.1,0.26819964]
[1720624295312,1.11572867,3106.2,3105.2,0.34887396]
[1720624295614,1.11572867,3106.1,3105.2,0.34887396]
[1720624295918,1.11572867,3106.0,3105.3,0.03764202]
[1720624296122,0.33670346,3106.5,3105.3,0.03764202]
[1720624296128,1.11572867,3105.9,3105.3,0.03764202]
[1720624296440,1.11572867,3105.8,3104.9,5.2671]
[1720624296632,1.11573876,3105.7,3105.0,0.848782]
[1720624296839,1.11573876,3105.6,3105.0,0.88538871]
[1720624297056,1.11573876,3106.3,3105.1,5.47855]
[1720624297214,1.11561592,3106.2,3105.1,2.32249925]
[1720624297523,1.11561592,3106.1,3105.3,2.2581]
[1720624297709,4.53489886,3107.1,3105.5,3.22007]
[1720624297908,0.33667267,3106.9,3105.5,3.22007]
[1720624298224,0.33667267,3106.9,3105.6,0.03522978]
[1720624298225,1.1155029,3106.8,3105.6,0.03522978]
[1720624298408,0.33667267,3106.9,3105.6,0.03522978]
[1720624298409,1.56067627,3106.7,3105.6,0.03522978]
[1720624298612,1.56066726,3106.6,3105.6,0.03522978]
[1720624298853,1.1155029,3106.5,3105.3,2.2581]
[1720624299051,1.32489886,3106.8,3105.7,0.03513082]
[1720624299052,1.1155029,3106.7,3105.7,0.03513082]
[1720624299227,0.44516121,3106.6,3105.3,2.2581]
[1720624299423,1.1155029,3106.5,3105.8,0.03509027]
[1720624299612,1.1155029,3106.5,3105.3,2.2581]
[1720624299809,3.0,3106.8,3105.3,2.2581]
[1720624300039,1.56071198,3106.7,3105.4,3.2554672]
[1720624300344,1.11557487,3106.6,3105.5,0.55779672]
[1720624300551,1.11557487,3106.5,3105.4,0.0352772]
[1720624300855,1.11557487,3106.4,3105.6,0.03519608]
[1720624301013,1.11557487,3106.3,3105.5,0.03523664]
[1720624301348,1.11557487,3106.2,3105.6,0.03519608]
[1720624301649,1.11557487,3106.1,3105.6,0.03519608]
[1720624301852,1.11557487,3106.7,3105.3,2.2581]
[1720624302059,1.11557487,3106.7,3105.7,0.03515552]
[1720624302415,1.11557487,3106.7,3105.3,6.326258]
[1720624302617,1.11557487,3106.8,3105.8,0.03511497]
[1720624302862,1.56052521,3106.7,3105.3,6.326258]
[1720624303161,4.66314711,3106.9,3105.4,0.0352772]
[1720624303313,1.56048754,3106.8,3105.4,0.0352772]
[1720624303514,1.56048754,3106.7,3105.4,0.0352772]
[1720624303713,1.56048754,3106.6,3105.4,0.0352772]
[1720624304018,1.11551944,3106.5,3105.4,0.0352772]
[1720624304226,4.11551944,3106.8,3105.4,0.0352772]
[1720624304443,1.56051205,3106.7,3105.5,0.34041981]
[1720624304756,1.56051205,3106.6,3105.6,0.03519608]
[1720624304917,1.11551944,3106.5,3105.6,0.03519608]
[1720624305228,1.11551944,3106.4,3105.6,0.03519608]
[1720624305427,1.11551944,3106.3,3105.6,0.03519608]
[1720624305628,1.11551944,3106.2,3105.6,0.03519608]
[1720624305830,1.11551944,3106.1,3105.6,0.03519608]
[1720624306030,1.11551944,3106.0,3105.6,0.03519608]
[1720624306251,1.11551944,3105.9,3105.6,0.03519608]
[1720624306424,4.32647444,3106.8,3105.6,0.03519608]
[1720624306631,1.11550077,3105.8,3105.6,0.03519608]
[1720624306832,3.44498749,3106.7,3105.6,0.03519608]
[1720624306833,3.0,3106.7,3105.6,0.03519608]
[1720624307059,1.56048527,3106.6,3105.6,0.03519608]
[1720624307220,1.56048527,3106.5,3105.6,0.03519608]
[1720624307421,1.11549424,3106.4,3105.6,0.03519608]
[1720624307723,1.11549424,3106.3,3105.6,0.03519608]
[1720624307922,1.3283971,3106.7,3105.6,0.03519608]
[1720624307923,1.11549424,3106.6,3105.6,0.03519608]
[1720624308155,1.11549424,3106.6,3105.7,2.4753]
[1720624308456,1.11549424,3106.7,3105.8,0.06438878]
[1720624308663,1.66506977,3106.9,3105.8,0.06438878]
[1720624308664,1.11549424,3106.6,3105.8,6.16411878]
[1720624308866,1.11549424,3106.5,3105.9,0.90252781]
[1720624309158,1.11549424,3106.4,3105.9,0.90252781]
[1720624309366,1.11549424,3106.3,3105.9,0.90252781]
[1720624309519,1.11549424,3106.2,3105.9,0.90252781]
[1720624309720,1.3283971,3106.8,3105.9,0.90252781]
[1720624309917,3.33667267,3106.9,3106.0,3.05392578]
[1720624309918,1.56039269,3106.7,3106.0,3.05392578]
[1720624310157,1.66506977,3106.9,3106.1,0.06438213]
[1720624310158,1.11540034,3106.6,3106.1,0.06438213]
[1720624310384,1.11540034,3106.5,3106.1,0.09937097]
[1720624310726,1.11530597,3106.4,3106.1,0.03498884]
[1720624310923,1.3283971,3107.1,3106.1,0.03498884]
[1720624311124,1.56030954,3107.0,3106.1,0.03498884]
[1720624311371,1.56030954,3106.9,3106.1,3.25441884]
[1720624311574,0.4450236,3106.8,3106.1,3.25441884]
[1720624311724,0.4450236,3106.8,3106.1,0.03498884]
[1720624311725,1.56030954,3106.8,3106.1,0.03498884]
[1720624311928,1.11528594,3106.7,3106.1,0.03498884]
[1720624312237,1.11528594,3106.6,3106.1,0.75258209]